fUSD/lending_fUSD_20260408
["ID","MTS","AMOUNT","RATE_DAILY","PERIOD"]
[420023311,1775622642713,-743.49073325,0.00011351,2]
[420023312,1775622642723,-583.0,0.00011351,2]
[420023313,1775622642734,-583.0,0.00011351,2]
[420023314,1775622642743,-583.0,0.00011351,2]
[420023315,1775622642753,-583.0,0.00011351,2]
[420023316,1775622642763,-583.0,0.00011351,2]
[420023317,1775622642773,-583.0,0.00011351,2]
[420023318,1775622642783,-583.0,0.00011351,2]
[420023319,1775622642792,-583.0,0.00011351,2]
[420023320,1775622642803,-583.0,0.00011351,2]
[420023321,1775622642813,-583.0,0.00011351,2]
[420023322,1775622642823,-583.0,0.00011351,2]
[420023323,1775622642833,-583.0,0.00011351,2]
[420023324,1775622642843,-583.0,0.00011351,2]
[420023325,1775622642854,-583.0,0.00011351,2]
[420023326,1775622642864,-583.0,0.00011351,2]
[420023327,1775622642874,-583.0,0.00011351,2]
[420023328,1775622642886,-583.0,0.00011351,2]
[420023329,1775622642896,-583.0,0.00011351,2]
[420023330,1775622642906,-583.0,0.00011351,2]
[420023331,1775622642916,-583.0,0.00011351,2]
[420023332,1775622642927,-583.0,0.00011351,2]
[420023333,1775622642936,-583.0,0.00011351,2]
[420023334,1775622642946,-583.0,0.00011351,2]
[420023335,1775622642955,-602.47425874,0.00011351,2]
[420023336,1775622642965,-361.44642401,0.00011373,2]
[420023337,1775622642975,-500.0,0.00011373,2]
[420023338,1775622642985,-500.0,0.00011373,2]
[420023339,1775622642995,-8780.59847775,0.00011384,2]
[420023340,1775622643005,-160.0,0.00011387,3]
[420023341,1775622643017,-741.53,0.00011398,2]
[420023342,1775622643027,-500.0,0.00011398,2]
[420023343,1775622643038,-500.0,0.00011421,2]
[420023344,1775622643048,-1000.0,0.00011421,2]
[420023346,1775622643061,-500.54232895,0.00011421,2]
[420023348,1775622643072,-1000.0,0.00011421,2]
[420023350,1775622643084,-1000.0,0.00011421,2]
[420023351,1775622643099,-400.0,0.00011487,2]
[420023352,1775622643111,-400.0,0.00011502,2]
[420023353,1775622643123,-322.07,0.00011502,2]
[420023354,1775622643133,-4522.85,0.00011507,2]
[420023355,1775622643144,-400.0,0.00011517,2]
[420023356,1775622643154,-400.0,0.00011517,2]
[420023357,1775622643165,-200.0,0.00011547,2]
[420023358,1775622643176,-500.87166627,0.00011621,2]
[420023359,1775622643185,-1000.0,0.00011621,2]
[420023360,1775622643197,-741.53,0.00011672,2]
[420023361,1775622643209,-500.0,0.00011672,2]
[420023362,1775622643220,-164.0,0.00011766,3]
[420023363,1775622643231,-5000.0,0.0001177,2]
[420023364,1775622643241,-195.0,0.0001177,2]
[420023365,1775622643252,-195.0,0.0001177,2]
[420023367,1775622643263,-195.0,0.0001177,2]
[420023370,1775622643274,-195.0,0.0001177,2]
[420023371,1775622643284,-195.0,0.0001177,2]
[420023372,1775622643294,-250.0,0.0001177,2]
[420023373,1775622643304,-193.0,0.00011777,2]
[420023374,1775622643315,-300.0,0.00011777,2]
[420023375,1775622643325,-600.0,0.00011777,2]
[420023376,1775622643335,-600.0,0.00011777,2]
[420023377,1775622643346,-600.0,0.00011777,2]
[420023378,1775622643356,-276.00185502,0.00011777,2]
[420023379,1775622643366,-164.0,0.00011788,2]
[420023380,1775622643377,-160.0,0.00011845,2]
[420023381,1775622643387,-851.516445,0.00011845,2]
[420023382,1775622643398,-160.0,0.00011845,2]
[420023383,1775622643410,-1543.032891,0.00011845,2]
[420023384,1775622643420,-427.372558,0.00011845,2]
[420023385,1775622643430,-694.745117,0.00011845,2]
[420023386,1775622643441,-160.0,0.00011845,2]
[420023387,1775622643452,-864.991359,0.00011845,2]
[420023388,1775622643462,-1569.982719,0.00011845,2]
[420023389,1775622643473,-470.399033,0.00011845,2]
[420023390,1775622643484,-20093.84505006,0.00011863,2]
[420023391,1775622643495,-8780.59847775,0.00011865,2]
[420023392,1775622643505,-1500.0,0.00011868,2]
[420023393,1775622643516,-1500.0,0.00011868,2]
[420023394,1775622643526,-1393.05427862,0.00011868,2]
[420023395,1775622643537,-250.0,0.0001188,2]
[420023396,1775622643547,-250.0,0.0001188,2]
[420023397,1775622643559,-1000.0,0.00011921,2]
[420023398,1775622643569,-1005.26092866,0.00011921,2]
[420023399,1775622643580,-741.53,0.00011946,2]
[420023400,1775622643590,-500.0,0.00011946,2]
[420023401,1775622643601,-1537.33935184,0.00011968,2]
[420023402,1775622643613,-1500.0,0.00011968,2]
[420023403,1775622643623,-1500.0,0.00011968,2]
[420023404,1775622643635,-9999.99,0.00012087,2]
[420023405,1775622643646,-999.99,0.00012087,2]
[420023406,1775622643656,-299.99,0.00012087,2]
[420023407,1775622643667,-9999.99,0.00012087,2]
[420023408,1775622643678,-150.99,0.00012087,2]
[420023409,1775622643689,-1138.4,0.00012087,2]
[420023410,1775622643699,-727.93,0.00012087,2]
[420023411,1775622643710,-150.99,0.00012087,2]
[420023412,1775622643722,-14148.83,0.00012087,2]
[420023413,1775622643732,-200.0,0.00012095,2]
[420023414,1775622643744,-1500.0,0.00012168,2]
[420023415,1775622643755,-150.64,0.00012182,2]
[420023416,1775622643766,-503.45185304,0.0001222,2]
[420023417,1775622643777,-741.53,0.0001222,2]
[420023418,1775622643787,-578.20924308,0.00012245,2]
[420023419,1775622643798,-1235.18214925,0.00012245,2]
[420023420,1775622643808,-200.0,0.00012245,2]
[420023421,1775622643819,-623.58710448,0.00012245,2]
[420023422,1775622643830,-500.0,0.00012245,2]
[420023423,1775622643841,-181.08010149,0.00012245,2]
[420023424,1775622643851,-1000.0,0.00012245,2]
[420023425,1775622643861,-1005.74385688,0.00012245,2]
[420023426,1775622643871,-151.0,0.00012245,2]
[420023427,1775622643882,-743.50770149,0.00012245,2]
[420023428,1775622643893,-591.41950389,0.00012245,2]
[420023429,1775622643903,-174.61919141,0.00012245,2]
[420023430,1775622643914,-505.73279232,0.00012245,2]
[420023431,1775622643924,-170.0,0.00012245,2]
[420023432,1775622643934,-170.0,0.00012245,2]
[420023433,1775622643945,-170.0,0.00012245,2]
[420023434,1775622643956,-170.0,0.00012245,2]
[420023435,1775622643967,-170.0,0.00012245,2]
[420023436,1775622643977,-170.0,0.00012245,2]
[420023437,1775622643988,-170.0,0.00012245,2]
[420023438,1775622643999,-170.0,0.00012245,2]
[420023439,1775622644009,-170.0,0.00012245,2]
[420023440,1775622644020,-170.0,0.00012245,2]
[420023441,1775622644030,-170.0,0.00012245,2]
[420023442,1775622644041,-170.0,0.00012245,2]
[420023443,1775622644051,-170.0,0.00012245,2]
[420023444,1775622644061,-170.0,0.00012245,2]
[420023445,1775622644071,-294.75734877,0.00012245,2]
[420023446,1775622644081,-500.0,0.000123,2]
[420023447,1775622644091,-151.0,0.000123,2]
[420023448,1775622644101,-8780.59847775,0.00012347,2]
[420023449,1775622644111,-500.0,0.00012355,2]
[420023450,1775622644121,-151.0,0.00012355,2]
[420023451,1775622644131,-20093.84505006,0.00012394,2]
[420023452,1775622644142,-500.0,0.0001241,2]
[420023453,1775622644152,-151.0,0.0001241,2]
[420023454,1775622644162,-2000.0,0.00012416,2]
[420023455,1775622644172,-1502.00876238,0.00012416,2]
[420023456,1775622644182,-1161.158789,0.00012438,2]
[420023457,1775622644191,-582.780762,0.00012438,2]
[420023458,1775622644201,-1179.533672,0.00012438,2]
[420023459,1775622644211,-213.817742,0.00012438,2]
[420023460,1775622644221,-500.0,0.00012465,2]
[420023461,1775622644231,-151.0,0.00012465,2]
[420023463,1775622644241,-391.89335958,0.00012468,2]
[420023465,1775622644251,-741.53,0.00012494,2]
[420023466,1775622644260,-2001.79789242,0.00012516,2]
[420023468,1775622644271,-2000.0,0.00012516,2]
[420023470,1775622644282,-500.0,0.0001252,2]
[420023471,1775622644292,-151.0,0.0001252,2]
[420023473,1775622644302,-500.0,0.00012575,2]
[420023475,1775622644312,-151.0,0.00012575,2]
[420023477,1775622644323,-500.0,0.0001263,2]
[420023480,1775622644334,-151.0,0.0001263,2]
[420023481,1775622644344,-200.0,0.00012643,2]
[420023484,1775622644354,-500.0,0.00012685,2]
[420023486,1775622644364,-151.0,0.00012685,2]
[420023487,1775622644375,-169.2237,0.000127,2]
[420023489,1775622644386,-160.0,0.00012713,3]
[420023491,1775622644397,-515.28558372,0.00012716,2]
[420023492,1775622644407,-500.0,0.0001274,2]
[420023493,1775622644417,-151.0,0.0001274,2]
[420023494,1775622644427,-741.54785208,0.00012768,2]
[420023495,1775622644437,-1280.88388878,0.00012793,2]
[420023496,1775622644447,-200.0,0.00012793,2]
[420023497,1775622644457,-187.78006525,0.00012793,2]
[420023498,1775622644467,-771.01748645,0.00012793,2]
[420023499,1775622644478,-181.08010149,0.00012793,2]
[420023500,1775622644489,-500.0,0.00012795,2]
[420023501,1775622644499,-151.0,0.00012795,2]
[420023502,1775622644509,-8780.59847775,0.00012829,2]
[420023503,1775622644518,-500.0,0.0001285,2]
[420023504,1775622644528,-151.0,0.0001285,2]
[420023505,1775622644538,-500.0,0.00012905,2]
[420023506,1775622644549,-151.0,0.00012905,2]
[420023507,1775622644559,-20093.84505006,0.00012925,2]
[420023508,1775622644570,-389.29,0.00012935,2]
[420023509,1775622644579,-500.0,0.0001296,2]
[420023510,1775622644589,-151.0,0.0001296,2]
[420023511,1775622644599,-1003.61823881,0.00012964,2]
[420023512,1775622644609,-500.0,0.00013015,2]
[420023513,1775622644619,-151.0,0.00013015,2]
[420023514,1775622644628,-153.0,0.00013045,3]
[420023515,1775622644637,-2003.75016468,0.00013064,2]
[420023516,1775622644646,-507.0,0.000131,2]
[420023517,1775622644656,-201.60184993,0.00013191,2]
[420023518,1775622644666,-8780.59847775,0.0001331,2]
[420023519,1775622644676,-1328.27659266,0.00013341,2]
[420023520,1775622644686,-200.0,0.00013341,2]
[420023521,1775622644696,-194.72792766,0.00013341,2]
[420023522,1775622644706,-799.54513345,0.00013341,2]
[420023523,1775622644716,-187.78006525,0.00013341,2]
[420023524,1775622644727,-20093.84505006,0.00013456,2]
[420023525,1775622644737,-164.0,0.00013471,3]
[420023526,1775622644747,-1150.26588596,0.00013483,2]
[420023527,1775622644757,-1000.0,0.00013502,2]
[420023528,1775622644768,-603.80257,0.00013622,2]
[420023529,1775622644779,-303.045996,0.00013622,2]
[420023530,1775622644788,-613.357509,0.00013622,2]
[420023531,1775622644799,-500.0,0.00013698,2]
[420023532,1775622644809,-500.0,0.00013698,2]
[420023533,1775622644819,-500.0,0.00013698,2]
[420023534,1775622644828,-500.0,0.00013698,2]
[420023535,1775622644839,-500.0,0.00013698,2]
[420023536,1775622644848,-500.0,0.00013698,2]
[420023537,1775622644858,-500.0,0.00013698,2]
[420023538,1775622644868,-500.0,0.00013698,2]
[420023539,1775622644879,-500.0,0.00013698,2]
[420023540,1775622644888,-500.0,0.00013698,2]
[420023541,1775622644899,-500.0,0.00013698,2]
[420023542,1775622644909,-500.0,0.00013698,2]
[420023543,1775622644918,-500.0,0.00013698,2]
[420023544,1775622644928,-500.0,0.00013698,2]
[420023545,1775622644937,-500.0,0.00013698,2]
[420023546,1775622644947,-500.0,0.00013698,2]
[420023547,1775622644957,-500.0,0.00013698,2]
[420023548,1775622644967,-500.0,0.00013698,2]
[420023549,1775622644977,-500.0,0.00013698,2]
[420023550,1775622644987,-500.0,0.00013698,2]
[420023551,1775622644996,-500.0,0.00013698,2]
[420023552,1775622645007,-500.0,0.00013698,2]
[420023553,1775622645018,-500.0,0.00013698,2]
[420023554,1775622645027,-500.0,0.00013698,2]
[420023555,1775622645037,-490.0,0.00013698,2]
[420023556,1775622645048,-500.0,0.00013698,2]
[420023557,1775622645057,-500.0,0.00013698,2]
[420023558,1775622645067,-500.0,0.00013698,2]
[420023559,1775622645077,-500.0,0.00013698,2]
[420023560,1775622645087,-500.0,0.00013698,2]
[420023561,1775622645098,-500.0,0.00013698,2]
[420023562,1775622645108,-500.0,0.00013698,2]
[420023563,1775622645118,-500.0,0.00013698,2]
[420023564,1775622645129,-500.0,0.00013698,2]
[420023565,1775622645139,-500.0,0.00013698,2]
[420023566,1775622645148,-500.0,0.00013698,2]
[420023567,1775622645158,-500.0,0.00013698,2]
[420023568,1775622645167,-500.0,0.00013698,2]
[420023569,1775622645177,-500.0,0.00013698,2]
[420023570,1775622645187,-500.0,0.00013698,2]
[420023571,1775622645197,-500.0,0.00013698,2]
[420023572,1775622645206,-500.0,0.00013698,2]
[420023573,1775622645216,-500.0,0.00013698,2]
[420023574,1775622645226,-500.14075642,0.00013698,2]
[420023575,1775622645237,-500.0,0.00013698,2]
[420023576,1775622645247,-500.0,0.00013698,2]
[420023577,1775622645258,-500.0,0.00013698,2]
[420023578,1775622645268,-500.0,0.00013698,2]
[420023579,1775622645278,-500.0,0.00013698,2]
[420023580,1775622645289,-500.0,0.00013698,2]
[420023581,1775622645299,-500.0,0.00013698,2]
[420023582,1775622645308,-500.0,0.00013698,2]
[420023583,1775622645318,-500.0,0.00013698,2]
[420023584,1775622645328,-500.0,0.00013698,2]
[420023585,1775622645338,-500.0,0.00013698,2]
[420023586,1775622645347,-500.0,0.00013698,2]
[420023587,1775622645357,-500.0,0.00013698,2]
[420023588,1775622645367,-500.0,0.00013698,2]
[420023589,1775622645376,-504.74596653,0.00013698,2]
[420023590,1775622645386,-500.0,0.00013698,2]
[420023591,1775622645397,-500.0,0.00013698,2]
[420023592,1775622645407,-500.0,0.00013698,2]
[420023593,1775622645416,-500.0,0.00013698,2]
[420023594,1775622645426,-500.0,0.00013698,2]
[420023595,1775622645436,-500.0,0.00013698,2]
[420023596,1775622645445,-500.0,0.00013698,2]
[420023597,1775622645455,-500.0,0.00013698,2]
[420023598,1775622645465,-500.0,0.00013698,2]
[420023599,1775622645476,-500.0,0.00013698,2]
[420023600,1775622645486,-500.0,0.00013698,2]
[420023601,1775622645496,-500.0,0.00013698,2]
[420023602,1775622645506,-500.0,0.00013698,2]
[420023603,1775622645516,-500.0,0.00013698,2]
[420023604,1775622645526,-500.0,0.00013698,2]
[420023605,1775622645537,-500.0,0.00013698,2]
[420023606,1775622645547,-500.0,0.00013698,2]
[420023607,1775622645557,-500.0,0.00013698,2]
[420023608,1775622645567,-500.0,0.00013698,2]
[420023609,1775622645576,-500.0,0.00013698,2]
[420023610,1775622645587,-500.0,0.00013698,2]
[420023611,1775622645596,-198.06604293,0.00013698,2]
[420023612,1775622645606,-500.0,0.00013698,2]
[420023613,1775622645615,-500.0,0.00013698,2]
[420023614,1775622645625,-500.0,0.00013698,2]
[420023615,1775622645635,-500.0,0.00013698,2]
[420023616,1775622645645,-500.0,0.00013698,2]
[420023617,1775622645655,-500.0,0.00013698,2]
[420023618,1775622645664,-500.0,0.00013698,2]
[420023619,1775622645674,-500.0,0.00013698,2]
[420023620,1775622645684,-500.0,0.00013698,2]
[420023621,1775622645694,-499.6872898,0.00013698,2]
[420023622,1775622645703,-500.0,0.00013698,2]
[420023623,1775622645712,-500.0,0.00013698,2]
[420023624,1775622645722,-500.0,0.00013698,2]
[420023625,1775622645733,-500.0,0.00013698,2]
[420023626,1775622645743,-500.0,0.00013698,2]
[420023627,1775622645753,-500.0,0.00013698,2]
[420023628,1775622645763,-500.0,0.00013698,2]
[420023629,1775622645776,-419.40847116,0.00013698,2]
[420023630,1775622645785,-500.03954585,0.00013698,2]
[420023631,1775622645795,-500.0,0.00013698,2]
[420023632,1775622645804,-500.0,0.00013698,2]
[420023633,1775622645814,-500.45174561,0.00013698,2]
[420023634,1775622645823,-500.0,0.00013698,2]
[420023635,1775622645833,-500.0,0.00013698,2]
[420023636,1775622645843,-500.0,0.00013698,2]
[420023637,1775622645853,-500.0,0.00013698,2]
[420023638,1775622645863,-500.0,0.00013698,2]
[420023639,1775622645873,-500.0,0.00013698,2]
[420023640,1775622645883,-467.66178343,0.00013698,2]
[420023641,1775622645893,-500.0,0.00013698,2]
[420023642,1775622645903,-500.0,0.00013698,2]
[420023643,1775622645913,-500.0,0.00013698,2]
[420023644,1775622645923,-500.0,0.00013698,2]
[420023645,1775622645933,-500.0,0.00013698,2]
[420023646,1775622645943,-500.0,0.00013698,2]
[420023647,1775622645953,-500.0,0.00013698,2]
[420023648,1775622645963,-500.0,0.00013698,2]
[420023649,1775622645972,-500.0,0.00013698,2]
[420023650,1775622645981,-500.0,0.00013698,2]
[420023651,1775622645991,-406.01852309,0.00013698,2]
[420023652,1775622646001,-500.0,0.00013698,2]
[420023653,1775622646010,-500.0,0.00013698,2]
[420023654,1775622646019,-500.0,0.00013698,2]
[420023655,1775622646029,-248.76967055,0.00013698,2]
[420023656,1775622646038,-500.0,0.00013698,2]
[420023657,1775622646048,-500.0,0.00013698,2]
[420023658,1775622646058,-500.0,0.00013698,2]
[420023659,1775622646068,-500.0,0.00013698,2]
[420023660,1775622646078,-500.0,0.00013698,2]
[420023661,1775622646089,-500.0,0.00013698,2]
[420023662,1775622646100,-542.71692042,0.00013698,2]
[420023663,1775622646110,-500.0,0.00013698,2]
[420023664,1775622646120,-500.0,0.00013698,2]
[420023665,1775622646130,-500.0,0.00013698,2]
[420023667,1775622646458,-500.0,0.00013698,2]
[420023668,1775622646469,-500.0,0.00013698,2]
[420023669,1775622646478,-500.0,0.00013698,2]
[420023670,1775622646489,-500.0,0.00013698,2]
[420023671,1775622646499,-500.0,0.00013698,2]
[420023672,1775622646510,-500.0,0.00013698,2]
[420023673,1775622646520,-500.0,0.00013698,2]
[420023674,1775622646531,-500.0,0.00013698,2]
[420023675,1775622646541,-500.0,0.00013698,2]
[420023676,1775622646552,-500.0,0.00013698,2]
[420023677,1775622646562,-562.38643831,0.00013698,2]
[420023678,1775622646572,-500.0,0.00013698,2]
[420023679,1775622646582,-500.0,0.00013698,2]
[420023680,1775622646592,-500.0,0.00013698,2]
[420023681,1775622646602,-500.0,0.00013698,2]
[420023682,1775622646612,-500.0,0.00013698,2]
[420023683,1775622646621,-500.0,0.00013698,2]
[420023684,1775622646631,-500.0,0.00013698,2]
[420023685,1775622646641,-500.0,0.00013698,2]
[420023686,1775622646651,-500.0,0.00013698,2]
[420023687,1775622646661,-500.0,0.00013698,2]
[420023688,1775622646670,-500.0,0.00013698,2]
[420023689,1775622646679,-500.0,0.00013698,2]
[420023690,1775622646689,-500.0,0.00013698,2]
[420023691,1775622646699,-500.0,0.00013698,2]
[420023692,1775622646709,-500.0,0.00013698,2]
[420023693,1775622646719,-500.0,0.00013698,2]
[420023694,1775622646729,-500.0,0.00013698,2]
[420023695,1775622646739,-658.1,0.00013698,2]
[420023696,1775622646748,-658.1,0.00013698,2]
[420023697,1775622646758,-658.1,0.00013698,2]
[420023698,1775622646768,-658.1,0.00013698,2]
[420023699,1775622646778,-658.1,0.00013698,2]
[420023700,1775622646788,-658.1,0.00013698,2]
[420023701,1775622646798,-658.1,0.00013698,2]
[420023702,1775622646808,-658.1,0.00013698,2]
[420023703,1775622646819,-658.1,0.00013698,2]
[420023704,1775622646828,-658.1,0.00013698,2]
[420023705,1775622646839,-658.1,0.00013698,2]
[420023706,1775622646848,-658.1,0.00013698,2]
[420023707,1775622646858,-658.1,0.00013698,2]
[420023708,1775622646868,-658.1,0.00013698,2]
[420023709,1775622646878,-658.1,0.00013698,2]
[420023710,1775622646888,-553.39225555,0.00013698,2]
[420023712,1775622646898,-658.1,0.00013698,2]
[420023714,1775622646908,-658.1,0.00013698,2]
[420023716,1775622646918,-500.0,0.00013698,2]
[420023717,1775622646929,-633.831471,0.00013698,2]
[420023718,1775622646939,-500.0,0.00013698,2]
[420023719,1775622646949,-500.0,0.00013698,2]
[420023720,1775622646959,-500.0,0.00013698,2]
[420023721,1775622646970,-500.0,0.00013698,2]
[420023722,1775622646980,-500.0,0.00013698,2]
[420023723,1775622646990,-500.0,0.00013698,2]
[420023724,1775622647000,-500.0,0.00013698,2]
[420023725,1775622647009,-500.0,0.00013698,2]
[420023726,1775622647019,-500.0,0.00013698,2]
[420023727,1775622647029,-500.0,0.00013698,2]
[420023728,1775622647038,-500.0,0.00013698,2]
[420023729,1775622647048,-500.0,0.00013698,2]
[420023730,1775622647057,-500.0,0.00013698,2]
[420023731,1775622647067,-500.13,0.00013698,2]
[420023732,1775622647076,-500.0,0.00013698,2]
[420023733,1775622647086,-500.0,0.00013698,2]
[420023734,1775622647096,-500.0,0.00013698,2]
[420023735,1775622647106,-629.72113567,0.00013698,2]
[420023736,1775622647116,-150.0,0.00013699,2]
[420023737,1775622647126,-150.0,0.00013699,2]
[420023739,1775622647137,-150.0,0.00013699,2]
[420023741,1775622647147,-2308.67,0.00013699,2]
[420023743,1775622647158,-166.66,0.00013699,2]
[420023745,1775622647168,-200.0,0.00013699,2]
[420023747,1775622647177,-476.15,0.00013699,2]
[420023749,1775622647187,-396.8,0.00013699,2]
[420023751,1775622647196,-330.66,0.00013699,2]
[420023753,1775622647206,-275.55,0.00013699,2]
[420023755,1775622647216,-229.63,0.00013699,2]
[420023757,1775622647227,-191.36,0.00013699,2]
[420023760,1775622647237,-159.46,0.00013699,2]
[420023762,1775622647247,-797.34,0.00013699,2]
[420023764,1775622647257,-500.0,0.00013699,2]
[420023766,1775622647267,-500.0,0.00013699,2]
[420023768,1775622647276,-500.0,0.00013699,2]
[420023770,1775622647286,-500.0,0.00013699,2]
[420023772,1775622647296,-500.0,0.00013699,2]
[420023774,1775622647306,-501.53334874,0.00013699,2]
[420023776,1775622647315,-500.0,0.00013699,2]
[420023778,1775622647325,-500.0,0.00013699,2]
[420023780,1775622647334,-500.68321897,0.00013699,2]
[420023782,1775622647344,-500.0,0.00013699,2]
[420023783,1775622647355,-500.0,0.00013699,2]
[420023786,1775622647366,-500.0,0.00013699,2]
[420023787,1775622647375,-500.0,0.00013699,2]
[420023790,1775622647386,-500.0,0.00013699,2]
[420023792,1775622647397,-500.0,0.00013699,2]
[420023794,1775622647407,-500.27274938,0.00013699,2]
[420023796,1775622647419,-500.60430488,0.00013699,2]
[420023798,1775622647429,-500.0,0.00013699,2]
[420023800,1775622647440,-500.0,0.00013699,2]
[420023802,1775622647450,-500.0,0.00013699,2]
[420023804,1775622647461,-500.0,0.00013699,2]
[420023806,1775622647471,-500.0,0.00013699,2]
[420023808,1775622647482,-500.0,0.00013699,2]
[420023810,1775622647492,-500.0,0.00013699,2]
[420023812,1775622647502,-500.0,0.00013699,2]
[420023814,1775622647512,-500.0,0.00013699,2]
[420023816,1775622647522,-500.0,0.00013699,2]
[420023818,1775622647531,-500.32940014,0.00013699,2]
[420023820,1775622647541,-500.47050729,0.00013699,2]
[420023822,1775622647551,-290.88257095,0.00013699,2]
[420023824,1775622647562,-500.0,0.00013699,2]
[420023826,1775622647572,-244.23047354,0.00013699,2]
[420023828,1775622647584,-474.64837932,0.00013699,2]
[420023830,1775622647593,-288.28066678,0.00013699,2]
[420023832,1775622647603,-500.0,0.00013699,2]
[420023834,1775622647612,-500.0,0.00013699,2]
[420023836,1775622647623,-503.98766467,0.00013699,2]
[420023838,1775622647633,-163.86569709,0.00013699,2]
[420023840,1775622647643,-164.42313659,0.00013699,2]
[420023842,1775622647654,-500.0,0.00013699,2]
[420023844,1775622647664,-154.49,0.00013699,2]
[420023846,1775622647674,-158.15239998,0.00013699,2]
[420023848,1775622647684,-500.0,0.00013699,2]
[420023849,1775622647695,-658.1,0.00013699,2]
[420023850,1775622647704,-441.0,0.00013699,2]
[420023851,1775622647714,-441.0,0.00013699,2]
[420023852,1775622647724,-441.0,0.00013699,2]
[420023853,1775622647735,-441.0,0.00013699,2]
[420023854,1775622647744,-441.0,0.00013699,2]
[420023855,1775622647755,-441.0,0.00013699,2]
[420023856,1775622647765,-441.0,0.00013699,2]
[420023857,1775622647774,-441.0,0.00013699,2]
[420023858,1775622647783,-441.0,0.00013699,2]
[420023859,1775622647794,-441.0,0.00013699,2]
[420023860,1775622647803,-441.0,0.00013699,2]
[420023861,1775622647813,-441.0,0.00013699,2]
[420023862,1775622647823,-441.0,0.00013699,2]
[420023863,1775622647834,-441.0,0.00013699,2]
[420023864,1775622647844,-441.0,0.00013699,2]
[420023865,1775622647854,-441.0,0.00013699,2]
[420023866,1775622647863,-441.0,0.00013699,2]
[420023867,1775622647873,-441.0,0.00013699,2]
[420023868,1775622647882,-441.0,0.00013699,2]
[420023869,1775622647892,-441.0,0.00013699,2]
[420023870,1775622647902,-441.0,0.00013699,2]
[420023871,1775622647912,-441.0,0.00013699,2]
[420023872,1775622647922,-441.0,0.00013699,2]
[420023873,1775622647932,-461.0,0.00013699,2]
[420023874,1775622647942,-79364.77,0.000137,2]
[420023875,1775622647951,-4183.38,0.000137,2]
[420023876,1775622647962,-4183.38,0.000137,2]
[420023877,1775622647972,-2865.24,0.000137,2]
[420023878,1775622647982,-2865.24,0.000137,2]
[420023879,1775622647991,-2865.24,0.000137,2]
[420023880,1775622648000,-2865.24,0.000137,2]
[420023881,1775622648011,-501.50073946,0.00013738,2]
[420023882,1775622648020,-152.45672918,0.00013738,2]
[420023883,1775622648030,-8780.59847775,0.00013792,2]
[420023884,1775622648040,-166.66,0.00013836,2]
[420023885,1775622648050,-1377.42282659,0.00013889,2]
[420023886,1775622648058,-200.0,0.00013889,2]
[420023887,1775622648068,-319.09041194,0.00013889,2]
[420023888,1775622648078,-693.14665977,0.00013889,2]
[420023889,1775622648087,-194.72792766,0.00013889,2]
[420023890,1775622648097,-500.0,0.0001389,2]